fUST/lending_fUST_20241025
["ID","MTS","AMOUNT","RATE_DAILY","PERIOD"]
[340781737,1729806642920,-841.71,0.00013698,2]
[340781738,1729806642930,-500.0,0.00013698,2]
[340781739,1729806642940,-1802.48,0.00013698,2]
[340781740,1729806642950,-500.0,0.00013698,2]
[340781741,1729806642960,-500.0,0.00013698,2]
[340781742,1729806642970,-500.0,0.00013698,2]
[340781743,1729806642980,-505.36,0.00013698,2]
[340781744,1729806642990,-3527.4,0.00013698,2]
[340781745,1729806643000,-1744.23,0.00013698,2]
[340781746,1729806643010,-470.17858247,0.00013698,2]
[340781749,1729806643020,-500.0,0.00013698,2]
[340781750,1729806643030,-3029.11,0.00013698,2]
[340781751,1729806643039,-500.0,0.00013698,2]
[340781752,1729806643049,-774.96,0.00013698,2]
[340781753,1729806643061,-500.0,0.00013698,2]
[340781754,1729806643071,-500.0,0.00013698,2]
[340781756,1729806643080,-1315.11,0.00013698,2]
[340781758,1729806643090,-151.0,0.00013698,2]
[340781759,1729806643103,-500.0,0.00013698,2]
[340781760,1729806643113,-1572.54,0.00013698,2]
[340781761,1729806643124,-256.43008793,0.00013698,2]
[340781762,1729806643134,-500.0,0.00013698,2]
[340781763,1729806643144,-629.28,0.00013698,2]
[340781764,1729806643154,-500.0,0.00013698,2]
[340781765,1729806643164,-769.56,0.00013698,2]
[340781767,1729806643174,-151.0,0.00013698,2]
[340781768,1729806643185,-500.0,0.00013698,2]
[340781770,1729806643195,-342.84866657,0.00013698,2]
[340781772,1729806643205,-761.25,0.00013698,2]
[340781774,1729806643215,-180.821679,0.00013698,2]
[340781775,1729806643225,-1552.93,0.00013698,2]
[340781776,1729806643235,-180.821679,0.00013698,2]
[340781777,1729806643244,-500.0,0.00013698,2]
[340781778,1729806643254,-500.0,0.00013698,2]
[340781779,1729806643264,-500.0,0.00013698,2]
[340781780,1729806643275,-756.39,0.00013698,2]
[340781781,1729806643285,-500.0,0.00013698,2]
[340781783,1729806643296,-1706.31,0.00013698,2]
[340781785,1729806643308,-151.0,0.00013698,2]
[340781786,1729806643319,-550.17,0.00013698,2]
[340781787,1729806643330,-876.2,0.00013698,2]
[340781788,1729806643340,-874.97,0.00013698,2]
[340781789,1729806643350,-500.0,0.00013698,2]
[340781790,1729806643360,-944.26,0.00013698,2]
[340781791,1729806643371,-626.63,0.00013698,2]
[340781792,1729806643382,-500.0,0.00013698,2]
[340781793,1729806643393,-811.13,0.00013698,2]
[340781794,1729806643403,-160.0,0.00013698,2]
[340781796,1729806643416,-1260.91,0.00013698,2]
[340781797,1729806643426,-500.0,0.00013698,2]
[340781798,1729806643438,-764.55,0.00013698,2]
[340781799,1729806643448,-500.0,0.00013698,2]
[340781800,1729806643458,-500.0,0.00013698,2]
[340781801,1729806643468,-830.77,0.00013698,2]
[340781802,1729806643479,-888.89,0.00013698,2]
[340781803,1729806643488,-2177.85,0.00013698,2]
[340781804,1729806643498,-500.0,0.00013698,2]
[340781805,1729806643508,-555.15,0.00013698,2]
[340781806,1729806643519,-500.0,0.00013698,2]
[340781807,1729806643529,-1051.36,0.00013698,2]
[340781808,1729806643539,-1156.49,0.00013698,2]
[340781809,1729806643550,-500.0,0.00013698,2]
[340781810,1729806643562,-500.0,0.00013698,2]
[340781811,1729806643572,-500.0,0.00013698,2]
[340781812,1729806643582,-494.21347529,0.00013698,2]
[340781813,1729806643592,-500.0,0.00013698,2]
[340781814,1729806643604,-500.0,0.00013698,2]
[340781815,1729806643614,-500.0,0.00013698,2]
[340781816,1729806643623,-500.0,0.00013698,2]
[340781817,1729806643633,-1092.91,0.00013698,2]
[340781818,1729806643643,-1476.39,0.00013698,2]
[340781819,1729806643652,-500.0,0.00013698,2]
[340781820,1729806643662,-950.08,0.00013698,2]
[340781821,1729806643672,-500.0,0.00013698,2]
[340781822,1729806643682,-151.0,0.00013698,2]
[340781823,1729806643692,-151.0,0.00013698,2]
[340781824,1729806643702,-151.0,0.00013698,2]
[340781825,1729806643712,-151.0,0.00013698,2]
[340781826,1729806643722,-500.0,0.00013698,2]
[340781827,1729806643732,-151.0,0.00013698,2]
[340781828,1729806643742,-151.0,0.00013698,2]
[340781829,1729806643751,-151.0,0.00013698,2]
[340781830,1729806643761,-151.0,0.00013698,2]
[340781831,1729806643773,-608.46,0.00013698,2]
[340781832,1729806643783,-500.0,0.00013698,2]
[340781833,1729806643793,-500.0,0.00013698,2]
[340781834,1729806643802,-500.0,0.00013698,2]
[340781835,1729806643812,-991.17,0.00013698,2]
[340781836,1729806643822,-151.0,0.00013698,2]
[340781837,1729806643832,-500.0,0.00013698,2]
[340781838,1729806643843,-151.0,0.00013698,2]
[340781839,1729806643852,-803.06,0.00013698,2]
[340781840,1729806643862,-1230.56,0.00013698,2]
[340781841,1729806643871,-500.0,0.00013698,2]
[340781842,1729806643881,-151.0,0.00013698,2]
[340781843,1729806643890,-151.0,0.00013698,2]
[340781844,1729806643900,-151.0,0.00013698,2]
[340781845,1729806643910,-569.68960701,0.00013698,2]
[340781846,1729806643919,-731.61,0.00013698,2]
[340781847,1729806643929,-166.365667,0.00013698,2]
[340781848,1729806643939,-151.0,0.00013698,2]
[340781849,1729806644203,-166.365667,0.00013698,2]
[340781850,1729806644215,-166.365667,0.00013698,2]
[340781851,1729806644226,-166.365667,0.00013698,2]
[340781852,1729806644238,-2033.9,0.00013698,2]
[340781853,1729806644249,-899.98,0.00013698,2]
[340781854,1729806644259,-151.0,0.00013698,2]
[340781855,1729806644268,-151.0,0.00013698,2]
[340781856,1729806644278,-151.0,0.00013698,2]
[340781857,1729806644288,-166.365667,0.00013698,2]
[340781858,1729806644299,-151.0,0.00013698,2]
[340781859,1729806644310,-151.0,0.00013698,2]
[340781860,1729806644322,-166.365667,0.00013698,2]
[340781861,1729806644333,-166.365667,0.00013698,2]
[340781862,1729806644344,-151.0,0.00013698,2]
[340781863,1729806644354,-166.365667,0.00013698,2]
[340781864,1729806644365,-1249.15,0.00013698,2]
[340781865,1729806644374,-151.0,0.00013698,2]
[340781866,1729806644383,-151.0,0.00013698,2]
[340781867,1729806644393,-500.0,0.00013698,2]
[340781868,1729806644402,-500.0,0.00013698,2]
[340781869,1729806644411,-500.0,0.00013698,2]
[340781870,1729806644420,-597.52,0.00013698,2]
[340781871,1729806644430,-500.0,0.00013698,2]
[340781872,1729806644439,-500.0,0.00013698,2]
[340781873,1729806644449,-151.0,0.00013698,2]
[340781874,1729806644458,-151.0,0.00013698,2]
[340781875,1729806644468,-151.0,0.00013698,2]
[340781876,1729806644478,-500.0,0.00013698,2]
[340781877,1729806644487,-151.0,0.00013698,2]
[340781878,1729806644498,-500.0,0.00013698,2]
[340781879,1729806644508,-500.0,0.00013698,2]
[340781880,1729806644523,-1474.04,0.00013698,2]
[340781881,1729806644533,-2530.49,0.00013698,2]
[340781882,1729806644543,-500.0,0.00013698,2]
[340781883,1729806644555,-817.13,0.00013698,2]
[340781884,1729806644565,-151.0,0.00013698,2]
[340781885,1729806644575,-151.0,0.00013698,2]
[340781886,1729806644586,-151.0,0.00013698,2]
[340781887,1729806644596,-151.0,0.00013698,2]
[340781888,1729806644606,-1711.13,0.00013698,2]
[340781889,1729806644617,-151.0,0.00013698,2]
[340781890,1729806644627,-500.0,0.00013698,2]
[340781891,1729806644638,-151.0,0.00013698,2]
[340781892,1729806644649,-151.0,0.00013698,2]
[340781893,1729806644659,-151.0,0.00013698,2]
[340781894,1729806644669,-242.41708,0.00013698,2]
[340781895,1729806644680,-995.8,0.00013698,2]
[340781896,1729806644690,-1143.46,0.00013698,2]
[340781897,1729806644699,-1078.47,0.00013698,2]
[340781898,1729806644709,-2306.53,0.00013698,2]
[340781899,1729806644719,-612.0,0.00013698,2]
[340781900,1729806644728,-500.0,0.00013698,2]
[340781901,1729806644737,-294.163867,0.00013698,2]
[340781902,1729806644747,-294.163867,0.00013698,2]
[340781903,1729806644757,-294.163867,0.00013698,2]
[340781904,1729806644768,-294.163867,0.00013698,2]
[340781905,1729806644779,-1490.09,0.00013698,2]
[340781906,1729806644790,-771.21,0.00013698,2]
[340781907,1729806644800,-294.163867,0.00013698,2]
[340781908,1729806644813,-294.163867,0.00013698,2]
[340781909,1729806644823,-500.0,0.00013698,2]
[340781910,1729806644835,-294.163867,0.00013698,2]
[340781911,1729806644846,-294.163867,0.00013698,2]
[340781912,1729806644857,-916.42,0.00013698,2]
[340781913,1729806644867,-1175.17,0.00013698,2]
[340781914,1729806644877,-1294.91,0.00013698,2]
[340781915,1729806644887,-563.89,0.00013698,2]
[340781916,1729806644897,-151.0,0.00013698,2]
[340781917,1729806644907,-151.0,0.00013698,2]
[340781918,1729806644917,-151.0,0.00013698,2]
[340781919,1729806644927,-155.591204,0.00013698,2]
[340781920,1729806644938,-26613.99,0.00013698,2]
[340781921,1729806644949,-151.0,0.00013698,2]
[340781922,1729806644960,-151.0,0.00013698,2]
[340781923,1729806644971,-151.0,0.00013698,2]
[340781924,1729806644981,-151.0,0.00013698,2]
[340781925,1729806644992,-151.0,0.00013698,2]
[340781926,1729806645003,-509.03214919,0.00013698,2]
[340781927,1729806645012,-500.0,0.00013698,2]
[340781928,1729806645023,-1019.46,0.00013698,2]
[340781929,1729806645035,-1159.35,0.00013698,2]
[340781930,1729806645045,-500.0,0.00013698,2]
[340781931,1729806645056,-500.0,0.00013698,2]
[340781932,1729806645067,-2389.14,0.00013698,2]
[340781933,1729806645077,-4578.54,0.00013698,2]
[340781934,1729806645087,-1471.52,0.00013698,2]
[340781935,1729806645097,-500.0,0.00013698,2]
[340781936,1729806645108,-1455.74,0.00013698,2]
[340781937,1729806645118,-361.846365,0.00013698,2]
[340781938,1729806645128,-361.846365,0.00013698,2]
[340781939,1729806645139,-361.846365,0.00013698,2]
[340781940,1729806645149,-361.846365,0.00013698,2]
[340781941,1729806645159,-151.0,0.00013698,2]
[340781942,1729806645170,-151.0,0.00013698,2]
[340781943,1729806645180,-151.0,0.00013698,2]
[340781944,1729806645190,-151.0,0.00013698,2]
[340781945,1729806645201,-1265.54,0.00013698,2]
[340781946,1729806645211,-500.0,0.00013698,2]
[340781947,1729806645221,-361.846365,0.00013698,2]
[340781948,1729806645231,-361.846365,0.00013698,2]
[340781949,1729806645241,-361.846365,0.00013698,2]
[340781950,1729806645251,-361.846365,0.00013698,2]
[340781951,1729806645261,-500.0,0.00013698,2]
[340781952,1729806645271,-900.46,0.00013698,2]
[340781953,1729806645281,-160.0,0.00013698,2]
[340781954,1729806645292,-310.75101331,0.00013698,2]
[340781955,1729806645302,-151.0,0.00013698,2]
[340781956,1729806645313,-500.0,0.00013698,2]
[340781957,1729806645323,-151.0,0.00013698,2]
[340781958,1729806645332,-151.0,0.00013698,2]
[340781959,1729806645342,-151.0,0.00013698,2]
[340781960,1729806645351,-160.0,0.00013698,2]
[340781961,1729806645361,-500.0,0.00013698,2]
[340781962,1729806645372,-1139.19,0.00013698,2]
[340781963,1729806645382,-500.0,0.00013698,2]
[340781964,1729806645392,-500.0,0.00013698,2]
[340781965,1729806645402,-957.37,0.00013698,2]
[340781966,1729806645412,-500.0,0.00013698,2]
[340781967,1729806645422,-151.0,0.00013698,2]
[340781968,1729806645432,-151.0,0.00013698,2]
[340781969,1729806645443,-151.0,0.00013698,2]
[340781970,1729806645452,-151.0,0.00013698,2]
[340781971,1729806645463,-1844.42,0.00013698,2]
[340781972,1729806645472,-500.0,0.00013698,2]
[340781973,1729806645482,-500.0,0.00013698,2]
[340781974,1729806645492,-151.0,0.00013698,2]
[340781975,1729806645501,-151.0,0.00013698,2]
[340781976,1729806645512,-151.0,0.00013698,2]
[340781977,1729806645523,-500.0,0.00013698,2]
[340781978,1729806645534,-151.0,0.00013698,2]
[340781979,1729806645544,-6173.84,0.00013698,2]
[340781980,1729806645555,-1894.89,0.00013698,2]
[340781981,1729806645567,-811.09,0.00013698,2]
[340781982,1729806645577,-3701.87,0.00013698,2]
[340781983,1729806645587,-151.0,0.00013698,2]
[340781984,1729806645599,-151.0,0.00013698,2]
[340781985,1729806645610,-151.0,0.00013698,2]
[340781986,1729806645621,-151.0,0.00013698,2]
[340781987,1729806645631,-151.0,0.00013698,2]
[340781988,1729806645641,-151.0,0.00013698,2]
[340781989,1729806645651,-151.0,0.00013698,2]
[340781990,1729806645661,-151.0,0.00013698,2]
[340781991,1729806645672,-500.0,0.00013698,2]
[340781992,1729806645683,-500.0,0.00013698,2]
[340781993,1729806645693,-151.0,0.00013698,2]
[340781994,1729806645703,-221.593845,0.00013698,2]
[340781995,1729806645713,-151.0,0.00013698,2]
[340781996,1729806645723,-221.593845,0.00013698,2]
[340781997,1729806645733,-151.0,0.00013698,2]
[340781998,1729806645743,-221.593845,0.00013698,2]
[340781999,1729806645754,-151.0,0.00013698,2]
[340782000,1729806645765,-221.593845,0.00013698,2]
[340782001,1729806645779,-13283.68,0.00013698,2]
[340782002,1729806645788,-151.0,0.00013698,2]
[340782003,1729806645799,-151.0,0.00013698,2]
[340782004,1729806645811,-301.62461268,0.00013698,2]
[340782005,1729806645823,-639.26130078,0.00013698,2]
[340782006,1729806645834,-151.0,0.00013698,2]
[340782007,1729806645847,-221.593845,0.00013698,2]
[340782008,1729806645858,-221.593845,0.00013698,2]
[340782009,1729806645869,-500.0,0.00013698,2]
[340782010,1729806645879,-221.593845,0.00013698,2]
[340782012,1729806645889,-221.593845,0.00013698,2]
[340782014,1729806645898,-241.52019221,0.00013698,2]
[340782016,1729806645908,-500.0,0.00013698,2]
[340782017,1729806645919,-500.0,0.00013698,2]
[340782019,1729806645928,-500.0,0.00013698,2]
[340782021,1729806645938,-876.94,0.00013698,2]
[340782024,1729806645948,-1125.86,0.00013698,2]
[340782026,1729806645958,-151.0,0.00013698,2]
[340782028,1729806645967,-151.0,0.00013698,2]
[340782029,1729806645977,-151.0,0.00013698,2]
[340782032,1729806645988,-151.0,0.00013698,2]
[340782034,1729806646000,-2604.61,0.00013698,2]
[340782035,1729806646010,-218.885528,0.00013698,2]
[340782036,1729806646019,-151.0,0.00013698,2]
[340782038,1729806646029,-500.0,0.00013698,2]
[340782040,1729806646039,-500.0,0.00013698,2]
[340782043,1729806646050,-151.0,0.00013698,2]
[340782045,1729806646061,-207.520516,0.00013698,2]
[340782047,1729806646071,-500.0,0.00013698,2]
[340782049,1729806646081,-500.0,0.00013698,2]
[340782051,1729806646091,-500.0,0.00013698,2]
[340782053,1729806646100,-151.0,0.00013698,2]
[340782055,1729806646111,-4500.25,0.00013698,2]
[340782058,1729806646120,-151.0,0.00013698,2]
[340782061,1729806646130,-500.0,0.00013698,2]
[340782063,1729806646140,-151.0,0.00013698,2]
[340782065,1729806646151,-151.0,0.00013698,2]
[340782068,1729806646161,-1948.91,0.00013698,2]
[340782069,1729806646171,-1190.02,0.00013698,2]
[340782072,1729806646180,-1258.26,0.00013698,2]
[340782074,1729806646190,-16.73270243,0.00013698,2]
[340782084,1729806646404,-134.26729757,0.00013698,2]
[340782085,1729806646414,-151.0,0.00013698,2]
[340782086,1729806646424,-500.0,0.00013698,2]
[340782087,1729806646433,-151.0,0.00013698,2]
[340782088,1729806646443,-151.0,0.00013698,2]
[340782089,1729806646453,-765.8,0.00013698,2]
[340782090,1729806646463,-1557.11,0.00013698,2]
[340782091,1729806646473,-500.0,0.00013698,2]
[340782092,1729806646484,-814.41,0.00013698,2]
[340782093,1729806646493,-500.0,0.00013698,2]
[340782094,1729806646503,-500.0,0.00013698,2]
[340782095,1729806646512,-524.0,0.00013698,2]
[340782096,1729806646523,-14.57959867,0.00013698,2]
[340782097,1729806646534,-328.83040133,0.00013698,2]
[340782098,1729806646544,-151.0,0.00013698,2]
[340782099,1729806646553,-151.0,0.00013698,2]
[340782100,1729806646564,-500.0,0.00013698,2]
[340782101,1729806646573,-151.0,0.00013698,2]
[340782102,1729806646582,-151.0,0.00013698,2]
[340782103,1729806646592,-500.0,0.00013698,2]
[340782104,1729806646602,-1675.52,0.00013698,2]
[340782105,1729806646660,-975.06,0.00013698,2]
[340782106,1729806646670,-977.44,0.00013698,2]
[340782107,1729806646679,-151.0,0.00013698,2]
[340782108,1729806646689,-151.0,0.00013698,2]
[340782109,1729806646698,-151.0,0.00013698,2]
[340782110,1729806646708,-151.0,0.00013698,2]
[340782111,1729806646717,-661.02,0.00013698,2]
[340782112,1729806646727,-3779.13,0.00013698,2]
[340782113,1729806646736,-151.0,0.00013698,2]
[340782114,1729806646746,-500.0,0.00013698,2]
[340782115,1729806646755,-500.0,0.00013698,2]
[340782116,1729806646765,-500.0,0.00013698,2]
[340782117,1729806646777,-500.0,0.00013698,2]
[340782118,1729806646786,-151.0,0.00013698,2]
[340782119,1729806646795,-151.0,0.00013698,2]
[340782120,1729806646804,-151.0,0.00013698,2]
[340782121,1729806646816,-151.0,0.00013698,2]
[340782122,1729806646825,-504.43,0.00013698,2]
[340782123,1729806646835,-929.13,0.00013698,2]
[340782124,1729806646846,-500.0,0.00013698,2]
[340782125,1729806646858,-755.71,0.00013698,2]
[340782126,1729806646868,-500.0,0.00013698,2]
[340782127,1729806646877,-500.0,0.00013698,2]
[340782128,1729806646886,-500.0,0.00013698,2]
[340782129,1729806646896,-500.0,0.00013698,2]
[340782130,1729806646905,-151.0,0.00013698,2]
[340782131,1729806646915,-151.0,0.00013698,2]
[340782132,1729806646924,-151.0,0.00013698,2]
[340782133,1729806646934,-151.0,0.00013698,2]
[340782134,1729806646944,-526.29,0.00013698,2]
[340782135,1729806646955,-151.0,0.00013698,2]
[340782136,1729806646965,-1910.06,0.00013698,2]
[340782137,1729806646975,-986.27,0.00013698,2]
[340782138,1729806646984,-500.0,0.00013698,2]
[340782139,1729806646994,-603.56,0.00013698,2]
[340782140,1729806647003,-401.26610981,0.00013698,2]
[340782141,1729806647013,-1228.19,0.00013698,2]
[340782142,1729806647022,-432.02290859,0.00013698,2]
[340782143,1729806647033,-500.0,0.00013698,2]
[340782144,1729806647042,-3302.2,0.00013698,2]
[340782145,1729806647051,-500.0,0.00013698,2]
[340782146,1729806647061,-500.0,0.00013698,2]
[340782147,1729806647071,-1155.58,0.00013698,2]
[340782148,1729806647079,-1017.33,0.00013698,2]
[340782149,1729806647090,-903.74,0.00013698,2]
[340782150,1729806647100,-151.0,0.00013698,2]
[340782151,1729806647109,-1140.53,0.00013698,2]
[340782152,1729806647119,-151.0,0.00013698,2]
[340782153,1729806647129,-500.0,0.00013698,2]
[340782154,1729806647139,-151.0,0.00013698,2]
[340782155,1729806647149,-151.0,0.00013698,2]
[340782156,1729806647159,-500.0,0.00013698,2]
[340782157,1729806647169,-151.0,0.00013698,2]
[340782158,1729806647178,-525.51415368,0.00013698,2]
[340782159,1729806647188,-151.0,0.00013698,2]
[340782160,1729806647197,-160.0,0.00013698,2]
[340782161,1729806647206,-151.0,0.00013698,2]
[340782162,1729806647217,-651.85,0.00013698,2]
[340782163,1729806647226,-151.0,0.00013698,2]
[340782164,1729806647236,-500.0,0.00013698,2]
[340782165,1729806647246,-862.55,0.00013698,2]
[340782166,1729806647255,-151.0,0.00013698,2]
[340782167,1729806647266,-500.0,0.00013698,2]
[340782168,1729806647276,-162.500423,0.00013698,2]
[340782169,1729806647286,-500.0,0.00013698,2]
[340782170,1729806647295,-500.0,0.00013698,2]
[340782171,1729806647306,-500.0,0.00013698,2]
[340782172,1729806647316,-500.0,0.00013698,2]
[340782173,1729806647326,-1349.33,0.00013698,2]
[340782174,1729806647336,-300.24622538,0.00013698,2]
[340782175,1729806647346,-500.0,0.00013698,2]
[340782176,1729806647357,-200.51733269,0.00013698,2]
[340782177,1729806647367,-151.0,0.00013698,2]
[340782178,1729806647377,-151.0,0.00013698,2]
[340782179,1729806647386,-151.0,0.00013698,2]
[340782180,1729806647396,-132.85274,0.00013698,2]
[340782181,1729806647410,-367.14726,0.00013698,2]
[340782182,1729806647419,-151.0,0.00013698,2]
[340782183,1729806647429,-778.55,0.00013698,2]
[340782184,1729806647439,-1205.0,0.00013698,2]
[340782185,1729806647448,-261.21807998,0.00013698,2]
[340782186,1729806647458,-500.0,0.00013698,2]
[340782187,1729806647467,-501.28214301,0.00013698,2]
[340782188,1729806647476,-720.02,0.00013698,2]
[340782189,1729806647486,-500.0,0.00013698,2]
[340782190,1729806647496,-155.986086,0.00013698,2]
[340782191,1729806647507,-155.986086,0.00013698,2]
[340782192,1729806647516,-155.986086,0.00013698,2]
[340782193,1729806647528,-500.0,0.00013698,2]
[340782194,1729806647537,-155.986086,0.00013698,2]
[340782195,1729806647548,-500.0,0.00013698,2]
[340782196,1729806647559,-577.27,0.00013698,2]
[340782197,1729806647569,-155.986086,0.00013698,2]
[340782198,1729806647578,-1396.58,0.00013698,2]
[340782199,1729806647587,-155.986086,0.00013698,2]
[340782200,1729806647597,-155.986086,0.00013698,2]
[340782201,1729806647606,-155.986086,0.00013698,2]
[340782202,1729806647615,-160.0,0.00013698,2]
[340782203,1729806647624,-500.0,0.00013698,2]
[340782204,1729806647633,-85.32915911,0.00013698,2]
[340782205,1729806648047,-414.67084089,0.00013698,2]
[340782206,1729806648057,-500.0,0.00013698,2]
[340782207,1729806648067,-295.62774829,0.00013698,2]
[340782210,1729807596494,214.0,0.000198,60]
[340782263,1729807832544,-396.639999,0.00011952,2]
[340782265,1729807832554,-511.6064451,0.00012088,2]
[340782267,1729807832564,-384.3732587,0.00012115,2]
[340782269,1729807832574,-169.624184,0.00012197,2]
[340782272,1729807832584,-160.033078,0.00012635,2]
[340782275,1729807832594,-160.033078,0.00012642,2]
[340782277,1729807832603,-160.033078,0.00012649,2]
[340782279,1729807832613,-160.033078,0.00012656,2]
[340782281,1729807832622,-160.033078,0.00012663,2]
[340782283,1729807832632,-160.033078,0.0001267,2]
[340782284,1729807832641,-160.033078,0.00012677,2]
[340782286,1729807832651,-160.033078,0.00012684,2]
[340782288,1729807832660,-160.033078,0.00012691,2]
[340782290,1729807832669,-160.033078,0.00012698,2]
[340782292,1729807832679,-169.624184,0.00012832,2]
[340782294,1729807832689,-300.0,0.00013497,2]
[340782296,1729807832699,-300.0,0.00013497,2]
[340782298,1729807832708,-7739.74789001,0.00013498,2]
[340782303,1729807838663,-4195.83531428,0.00013498,2]
[340782304,1729807838673,-184.24778218,0.00013578,2]
[340782305,1729807838683,-184.24778218,0.00013597,2]
[340782306,1729807838693,-1000.0,0.00013598,2]
[340782307,1729807838701,-426.81052362,0.00013668,2]
[340782308,1729807838710,-10626.9685329,0.00013668,2]
[340782309,1729807838719,-4399.96571302,0.00013668,2]
[340782310,1729807838763,-1095.01227807,0.00013668,2]
[340782316,1729807840781,-10314.45180511,0.00013668,2]
[340782317,1729807840790,-6438.89871086,0.0001367,2]
[340782318,1729807840800,-500.0,0.00013673,2]
[340782319,1729807840810,-500.0,0.00013673,2]
[340782320,1729807840820,-500.0,0.00013673,2]
[340782321,1729807840830,-500.0,0.00013673,2]
[340782322,1729807840840,-42507.8741315,0.00013678,2]
[340782323,1729807840850,-47428.2893885,0.00013678,2]
[340782324,1729807840860,-5000.0,0.00013688,2]
[340782325,1729807840869,-24949.33487863,0.00013688,2]
[340782326,1729807840883,-1174.61692453,0.00013688,2]
[340782327,1729807840895,-501.55,0.00013688,2]
[340782328,1729807840906,-32006.63021869,0.00013688,2]
[340782335,1729807843703,-26383.61624115,0.00013688,2]
[340782336,1729807843714,-63237.7191847,0.00013688,2]
[340782337,1729807843724,-3508.2307093,0.00013697,2]
[340782338,1729807843734,-500.0,0.00013698,2]
[340782339,1729807843743,-500.0,0.00013698,2]
[340782340,1729807843753,-195.89001712,0.00013698,2]
[340782341,1729807843763,-456.55638103,0.00013698,2]
[340782342,1729807843773,-500.0,0.00013698,2]
[340782343,1729807843783,-570.83786713,0.00013698,2]
[340782344,1729807843797,-500.0,0.00013698,2]
[340782345,1729807843807,-278.40996593,0.00013698,2]
[340782346,1729807843818,-500.0,0.00013698,2]
[340782347,1729807843828,-500.0,0.00013698,2]
[340782348,1729807843838,-611.80570232,0.00013698,2]
[340782349,1729807843848,-500.0,0.00013698,2]
[340782350,1729807843858,-408.87564118,0.00013698,2]
[340782351,1729807843867,-500.0,0.00013698,2]
[340782352,1729807843877,-500.0,0.00013698,2]
[340782353,1729807843888,-500.0,0.00013698,2]
[340782354,1729807843897,-500.0,0.00013698,2]
[340782355,1729807843907,-500.0,0.00013698,2]
[340782356,1729807843916,-500.0,0.00013698,2]
[340782357,1729807843926,-500.0,0.00013698,2]
[340782358,1729807843935,-500.0,0.00013698,2]
[340782359,1729807843945,-500.0,0.00013698,2]
[340782360,1729807843955,-500.0,0.00013698,2]
[340782361,1729807843966,-500.0,0.00013698,2]
[340782362,1729807843976,-500.0,0.00013698,2]
[340782363,1729807843985,-500.0,0.00013698,2]
[340782364,1729807843996,-500.0,0.00013698,2]
[340782365,1729807844006,-500.0,0.00013698,2]
[340782366,1729807844017,-500.0,0.00013698,2]
[340782367,1729807844026,-500.0,0.00013698,2]
[340782368,1729807844036,-619.90268488,0.00013698,2]
[340782369,1729807844046,-541.43059401,0.00013698,2]
[340782370,1729807844056,-500.0,0.00013698,2]
[340782371,1729807844065,-500.0,0.00013698,2]
[340782372,1729807844074,-500.0,0.00013698,2]
[340782373,1729807844084,-399.43838879,0.00013698,2]
[340782374,1729807844093,-552.94192004,0.00013698,2]
[340782375,1729807844102,-500.0,0.00013698,2]
[340782376,1729807844112,-500.0,0.00013698,2]